bitfinex/quotes_ETHUSD_20220310
["timestamp","ask_amount","ask_price","bid_price","bid_amount"]
[1646911482827,0.3856,2596.3,2595.6,1.92705]
[1646911483226,0.3856,2596.3,2595.7,0.96358]
[1646911483730,0.0503964,2596.4,2596.0,1.14849323]
[1646911483927,0.04564229,2596.6,2596.0,1.14849323]
[1646911484127,0.00353149,2596.2,2596.0,1.14849323]
[1646911484928,0.05154128,2596.3,2596.0,1.14849323]
[1646911485330,0.00353158,2596.2,2596.0,1.14849323]
[1646911486176,0.04437994,2596.5,2596.0,1.14849323]
[1646911486383,0.04437994,2596.5,2596.0,2.11202323]
[1646911486577,0.00353158,2596.2,2596.0,2.11202323]
[1646911487383,0.04437994,2596.5,2596.0,2.11202323]
[1646911487582,0.00175596,2596.7,2596.1,0.96335]
[1646911487583,0.0436708,2596.7,2596.1,0.96335]
[1646911487783,0.00327583,2596.2,2596.1,1.92666]
[1646911487982,0.00327583,2596.2,2596.1,0.96335]
[1646911488685,0.04446599,2596.6,2596.0,2.11202323]
[1646911488886,0.00327581,2596.3,2596.1,0.96333]
[1646911489387,0.00327581,2596.3,2596.1,1.01462725]
[1646911489831,0.04446599,2596.6,2596.1,1.01462725]
[1646911490026,0.0032758,2596.3,2596.1,1.01462725]
[1646911490228,0.0032758,2596.3,2596.1,0.05129725]
[1646911490926,0.3856,2596.5,2596.1,0.05129725]
[1646911490927,3.55083743,2596.4,2596.1,0.05129725]
[1646911491130,1.01448853,2596.4,2596.1,0.05129725]
[1646911491331,0.00331401,2596.3,2596.1,0.05129725]
[1646911492133,3.55083743,2596.4,2596.1,0.05129725]
[1646911492533,0.00331401,2596.3,2595.7,1.05707474]
[1646911493133,0.00331401,2596.3,2595.7,0.00331486]
[1646911493379,0.00331401,2596.3,2595.5,1.1896]
[1646911493380,0.0459691,2596.3,2595.3,1.92728]
[1646911493579,1.17625735,2596.0,2595.3,0.97774621]
[1646911493778,0.0459691,2596.3,2595.3,0.97774621]
[1646911493779,0.04558279,2595.9,2595.7,0.00331468]
[1646911493978,0.00331396,2596.2,2595.7,0.00331468]
[1646911494181,0.38891396,2596.2,2595.7,0.00331468]
[1646911494381,0.04712604,2596.1,2595.7,0.00331468]
[1646911494580,0.04712604,2596.1,2595.3,0.97774621]
[1646911494778,1.0033146,2596.0,2595.7,0.00330824]
[1646911494978,3.5,2595.9,2595.7,0.00330824]
[1646911495179,4.4638492,2595.9,2595.7,0.00330824]
[1646911495379,3.5,2595.8,2595.7,0.00330824]
[1646911495682,3.8,2595.8,2595.7,0.00330824]
[1646911495877,3.8,2595.8,2595.1,1.225]
[1646911495878,0.3,2595.8,2595.1,1.225]
[1646911496079,0.3,2595.8,2595.6,0.00330811]
[1646911496280,0.04843672,2595.9,2595.6,0.00330811]
[1646911496579,0.963904,2595.7,2595.6,0.00330811]
[1646911497040,0.963904,2595.7,2595.1,1.225]
[1646911497235,0.963904,2595.7,2595.5,0.00330815]
[1646911498239,0.963904,2595.7,2595.1,1.225]
[1646911498438,0.963904,2595.7,2595.5,0.00330912]
[1646911499238,0.94325721,2595.6,2595.5,0.00330912]
[1646911499442,0.94325721,2595.6,2595.1,1.225]
[1646911499443,0.963904,2595.7,2595.0,1.02957915]
[1646911499739,0.35089251,2595.8,2595.5,0.00330912]
[1646911500039,0.35089251,2595.8,2595.6,0.02230347]
[1646911500438,0.98335366,2595.7,2595.6,0.02230347]
[1646911500877,0.98335366,2595.7,2595.6,0.02561255]
[1646911501680,2.00741529,2595.7,2595.6,0.02561255]
[1646911501877,2.00741529,2595.7,2595.6,0.02230347]
[1646911504082,2.00741529,2595.7,2595.0,0.07215576]
[1646911504282,1.9280711,2595.5,2594.5,8.65307346]
[1646911504545,3.5,2595.4,2594.5,7.87759346]
[1646911504834,3.5,2595.4,2594.7,0.96823546]
[1646911504835,4.82406163,2595.4,2594.7,0.96823546]
[1646911505031,1.02406163,2595.3,2594.7,0.96823546]
[1646911505230,3.5,2595.2,2594.7,0.96823546]
[1646911505433,1.02406163,2595.1,2594.7,0.96823546]
[1646911505630,1.02406163,2595.1,2594.9,0.00324305]
[1646911506030,3.8,2595.4,2594.9,0.00324305]
[1646911506230,0.04489089,2595.6,2595.0,0.96384]
[1646911506231,1.04609812,2595.3,2595.0,0.96384]
[1646911506430,1.04609812,2595.5,2595.0,0.96384]
[1646911506630,1.04609812,2595.4,2595.0,0.96384]
[1646911506831,0.94609812,2595.5,2595.0,0.96708297]
[1646911507031,4.23049089,2595.6,2595.1,0.9684916]
[1646911507032,0.04489089,2595.6,2595.1,0.9684916]
[1646911507538,3.8,2595.8,2595.2,0.96377]
[1646911508136,3.8,2595.8,2595.2,0.96701288]
[1646911509086,3.8,2595.8,2595.2,0.96377]
[1646911509485,4.7638075,2595.8,2595.4,0.00324281]
[1646911510090,1.2638075,2595.8,2595.4,0.00324281]
[1646911510285,4.7638075,2595.8,2595.0,0.553]
[1646911510486,4.7638075,2595.8,2595.5,0.00311148]
[1646911511087,1.17097173,2595.6,2595.5,0.00311148]
[1646911511486,1.17097173,2595.6,2594.9,0.08090508]
[1646911511687,1.17097173,2595.6,2595.5,0.00311146]
[1646911512536,0.00099172,2595.2,2594.9,0.08090508]
[1646911512933,0.00099172,2595.2,2594.9,1.04478508]
[1646911513236,0.00099172,2595.2,2595.0,0.07828984]
[1646911514635,0.00099172,2595.2,2595.1,0.96381]
[1646911516884,4.71478332,2595.8,2595.2,1.10183988]
[1646911517089,0.9637916,2595.8,2595.3,0.0803882]
[1646911517288,1.1902,2596.0,2595.3,0.0803882]
[1646911517489,8.6033,2596.1,2595.3,0.0803882]
[1646911517688,0.00353076,2596.0,2595.4,0.00353166]
[1646911517890,0.00353076,2596.0,2595.4,0.63572017]
[1646911518087,0.00353076,2596.0,2595.5,0.08732015]
[1646911518588,1.01343602,2596.3,2595.7,1.21396782]
[1646911518789,1.01168006,2596.3,2595.8,0.96349]
[1646911518989,0.00353098,2596.0,2595.8,0.96349]
[1646911519736,0.00353098,2596.0,2595.9,0.07584885]
[1646911519933,1.01168006,2596.3,2595.9,0.07584885]
[1646911520133,0.00353112,2596.0,2595.9,0.07584885]
[1646911520935,0.71168006,2596.3,2595.9,0.07584885]
[1646911521133,1.7623566,2596.3,2595.9,0.07584885]
[1646911521335,0.0035311,2596.1,2595.9,0.07584885]
[1646911522136,2.97796254,2596.3,2595.7,0.07938928]
[1646911522338,1.01168006,2596.2,2595.7,0.07938928]
[1646911522537,0.00342515,2596.1,2595.7,0.07938928]
[1646911522740,0.71510521,2596.1,2595.7,0.07938928]
[1646911522939,1.05826591,2595.9,2595.7,0.07938928]
[1646911523141,2.02205831,2595.9,2595.7,0.07938928]
[1646911523381,2.02205831,2595.9,2595.4,0.08064869]
[1646911523582,2.02205831,2595.9,2595.4,0.07722254]
[1646911523782,2.02205831,2595.9,2595.4,0.08064851]
[1646911523981,5.52205831,2595.9,2595.4,0.08064851]
[1646911524282,1.9277732,2595.8,2595.4,0.08064851]
[1646911524482,1.9277732,2595.8,2595.4,0.00342597]
[1646911524682,1.9277732,2595.8,2595.2,0.07648865]
[1646911524882,3.5,2595.7,2595.2,0.07648865]
[1646911525086,4.46398,2595.7,2595.4,0.00342579]
[1646911525882,1.9279995,2595.6,2595.2,0.07648865]
[1646911526082,1.9279995,2595.6,2595.4,0.00328955]
[1646911526284,3.5,2595.5,2595.4,0.00328955]
[1646911526683,1.9279995,2595.6,2595.4,0.00328955]
[1646911526883,1.04749793,2595.5,2595.4,0.00328955]
[1646911527137,1.04749793,2595.5,2595.0,0.5402664]
[1646911527337,1.95573328,2595.5,2595.4,0.00328955]
[1646911527537,2.25573328,2595.5,2595.4,0.00328955]
[1646911527739,7.68373328,2595.5,2595.4,0.00328955]
[1646911528039,7.73528152,2595.5,2595.4,0.00328955]
[1646911528242,0.3856,2595.4,2594.7,1.1492]
[1646911528437,5.51146793,2595.3,2594.8,0.54046498]
[1646911528638,1.04749793,2595.2,2594.8,0.54046498]
[1646911529437,1.04749793,2595.2,2594.8,1.50438498]
[1646911529638,1.04749793,2595.2,2594.9,0.5435505]
[1646911530639,1.04749793,2595.2,2594.9,0.54046498]
[1646911530887,1.04749793,2595.2,2594.9,0.54355048]
[1646911531085,1.04749793,2595.2,2595.0,1.05428054]
[1646911531290,4.21168006,2595.7,2595.1,0.54046498]
[1646911531487,1.04747166,2595.6,2595.1,0.54046498]
[1646911531688,1.04747166,2595.5,2595.1,0.54046498]
[1646911531889,1.04747166,2595.4,2595.1,0.54046498]
[1646911532087,1.04747166,2595.3,2595.2,0.00308538]
[1646911532288,1.04747166,2595.7,2595.2,0.00308538]
[1646911532489,1.04747166,2595.6,2595.2,1.99271188]
[1646911532689,1.04747166,2595.5,2595.3,0.54046498]
[1646911532887,1.04747166,2595.4,2595.3,0.54046498]
[1646911533289,1.04747166,2595.7,2595.3,0.5437793]
[1646911533690,1.04747166,2595.7,2595.3,1.58671298]
[1646911533890,1.04747166,2595.6,2595.4,0.54010687]
[1646911534189,1.04747166,2595.5,2595.3,0.33394332]
[1646911534389,1.97544006,2595.8,2595.4,0.55337946]
[1646911534632,1.03500387,2595.7,2595.4,0.55337946]
[1646911535032,1.99883697,2595.7,2595.4,0.55337946]
[1646911535233,1.03500387,2595.6,2595.4,0.55337946]
[1646911536037,1.33500387,2595.7,2595.4,0.55337946]
[1646911536233,1.03500387,2595.6,2595.4,0.55337946]
[1646911537438,1.03500387,2595.6,2595.5,0.08748696]
[1646911537639,1.03500387,2595.6,2595.5,0.64086642]
[1646911539385,1.03500387,2595.6,2595.5,0.55337946]
[1646911539586,1.03500387,2595.6,2595.2,0.55690891]
[1646911539784,1.03500387,2595.6,2595.3,0.08696298]
[1646911539985,1.03500387,2595.6,2595.4,0.55337946]
[1646911543438,1.33500387,2595.6,2595.4,0.55337946]
[1646911543639,1.03500387,2595.5,2595.4,0.55337946]
[1646911544040,1.03500387,2595.5,2595.1,0.55337946]
[1646911544340,1.74668393,2595.5,2595.2,0.55991033]
[1646911544540,1.74668393,2595.5,2595.3,0.55648681]
[1646911544739,1.74668393,2595.5,2595.2,0.00342352]
[1646911544740,4.66960838,2595.4,2595.2,0.00342352]
[1646911544941,1.03500387,2595.3,2595.2,0.00342352]
[1646911545139,1.03500387,2595.3,2595.0,0.53488875]
[1646911545340,1.03500387,2595.3,2595.2,0.00327525]
[1646911546283,1.03500387,2595.3,2595.2,0.53488875]
[1646911546882,1.03500387,2595.3,2595.1,0.00327531]
[1646911547590,1.03500387,2595.3,2595.2,1.09129573]
[1646911547886,1.03500387,2595.3,2595.2,1.62618448]
[1646911549188,0.71168006,2595.6,2595.3,0.07460634]
[1646911549388,0.71168006,2595.6,2595.4,0.53488875]
[1646911549634,1.05623146,2595.6,2595.4,0.53488875]
[1646911550034,1.05623146,2595.5,2595.4,0.53488875]
[1646911550834,1.76791152,2595.7,2595.4,0.53488875]
[1646911551033,1.05623146,2595.6,2595.4,0.53488875]
[1646911551235,0.71168006,2595.7,2595.4,0.53488875]
[1646911551236,1.05623146,2595.5,2595.4,0.53488875]
[1646911551639,1.76791152,2595.7,2595.4,0.53488875]
[1646911551834,1.05623146,2595.6,2595.4,0.53488875]
[1646911552034,1.05623146,2595.5,2595.4,0.53488875]
[1646911552238,1.76791152,2595.7,2595.4,0.53488875]
[1646911552840,1.05623146,2595.6,2595.4,0.53488875]
[1646911553039,1.05623146,2595.5,2595.4,0.53488875]
[1646911553284,0.71168006,2595.7,2595.4,0.53488875]
[1646911553485,1.76791152,2595.7,2595.4,0.53488875]
[1646911553785,1.05623146,2595.6,2595.4,0.53488875]
[1646911553985,1.05623146,2595.5,2595.4,0.53488875]
[1646911554488,1.76791152,2595.8,2595.4,0.53488875]
[1646911557239,1.05623146,2595.7,2595.4,0.53488875]
[1646911557438,1.05623146,2595.6,2595.4,0.53488875]
[1646911557638,1.05623146,2595.5,2595.4,0.53488875]
[1646911558041,0.71168006,2595.8,2595.4,0.53488875]
[1646911558440,1.76791152,2595.8,2595.4,0.53488875]
[1646911558642,1.05623146,2595.7,2595.4,0.53488875]
[1646911558841,1.05623146,2595.6,2595.4,0.53488875]
[1646911559042,1.05623146,2595.5,2595.4,0.53488875]
[1646911559446,0.71168006,2595.8,2595.4,0.53488875]
[1646911559842,1.76791152,2595.8,2595.6,0.97116872]
[1646911560044,0.71498432,2596.0,2595.7,0.53488875]
[1646911560244,0.71498432,2596.0,2595.8,0.5349439]
[1646911560445,0.71498432,2596.0,2595.6,0.26031897]
[1646911560644,0.71168006,2596.0,2595.6,0.26031897]
[1646911560886,3.5,2595.9,2595.7,0.54825177]
[1646911561089,1.05644668,2595.8,2595.4,1.1911]
[1646911561287,1.05644668,2595.7,2595.5,0.5483257]
[1646911561486,1.05644668,2595.6,2595.3,0.07460634]
[1646911561686,1.05644668,2595.5,2595.4,0.54841731]
[1646911564935,1.05144668,2595.5,2595.4,0.54841731]
[1646911565537,1.05144668,2595.5,2595.4,0.54200241]
[1646911567037,1.05144668,2595.5,2595.2,0.00330533]
[1646911567244,1.09728006,2595.7,2595.2,0.00330533]
[1646911567643,0.71168006,2595.7,2595.2,0.00330533]
[1646911567842,0.71168006,2595.7,2595.2,1.19394277]
[1646911568042,0.71168006,2595.7,2595.2,1.1972481]
[1646911569083,1.72008195,2595.7,2595.2,1.19394277]
[1646911569283,1.72008195,2595.7,2595.2,1.1972481]
[1646911570383,0.71168006,2595.7,2595.2,1.19394277]
[1646911570583,0.71168006,2595.7,2595.2,1.19724809]
[1646911571183,0.71008054,2595.7,2595.2,1.19724809]
[1646911571586,0.71008054,2595.7,2595.2,1.19394277]
[1646911571787,0.71008054,2595.7,2595.2,1.19724809]
[1646911572054,0.71008054,2595.7,2595.3,0.08466221]
[1646911572450,0.95790595,2596.0,2595.3,0.08466221]
[1646911572653,0.95460167,2596.0,2595.3,0.08466221]
[1646911572849,8.0706,2596.1,2595.3,0.08466221]
[1646911572850,9.02520167,2596.1,2595.3,0.08466221]
[1646911573050,0.00330432,2596.0,2595.3,0.08466221]
[1646911573451,0.00330432,2596.0,2595.7,1.07889205]
[1646911573651,0.95790599,2596.0,2595.7,1.07889205]
[1646911573849,0.95460167,2596.0,2595.7,1.07889205]
[1646911574050,5.45460167,2596.1,2595.7,1.07889205]
[1646911574252,0.00330463,2596.0,2595.7,1.07889205]
[1646911574650,0.9579063,2596.0,2595.7,1.07889205]
[1646911574954,0.9579063,2596.0,2595.4,0.9637]
[1646911575155,0.95460167,2596.0,2595.4,0.9637]
[1646911575452,0.9579063,2596.0,2595.4,0.9637]
[1646911575651,0.00330463,2596.0,2595.5,0.96364]
[1646911575896,0.00330463,2596.0,2595.6,3.57056712]
[1646911576095,0.00330463,2596.0,2595.8,0.07242191]
[1646911576293,0.95460167,2596.5,2595.9,0.553]
[1646911576495,0.95460167,2596.6,2596.3,0.95164446]
[1646911576696,0.95460167,2596.6,2596.4,0.9633]
[1646911576997,0.95460167,2596.7,2596.5,0.06934048]
[1646911577200,0.95460167,2596.8,2596.5,1.03260048]
[1646911577397,0.99495973,2596.8,2596.6,0.08314078]
[1646911577701,0.04035806,2596.8,2596.6,0.08314078]
[1646911577898,0.04366239,2596.8,2596.7,1.05513523]
[1646911578699,0.04035806,2596.8,2596.7,1.05513523]
[1646911579555,0.04035806,2596.8,2596.7,2.98137523]
[1646911580447,0.04035806,2596.8,2596.7,1.27910029]
[1646911580847,0.04035806,2596.8,2596.7,1.57910029]
[1646911581049,0.04035806,2596.8,2596.7,2.60023881]
[1646911581248,0.75521121,2596.8,2596.7,2.60023881]
[1646911581448,0.04035806,2596.8,2596.7,2.60023881]
[1646911581648,0.75521121,2596.8,2596.7,1.57910029]
[1646911581850,0.75521121,2596.8,2596.4,2.00361094]
[1646911582049,0.71461778,2596.6,2596.4,2.00361094]
[1646911582253,0.71461778,2596.6,2596.4,0.07710094]
[1646911582453,0.71461778,2596.7,2596.4,0.07710094]
[1646911582757,0.71461778,2596.6,2596.2,1.06667347]
[1646911582955,0.7179221,2596.7,2596.3,0.08022432]
[1646911583385,0.7179221,2596.7,2596.5,0.07407109]
[1646911583587,0.71461778,2596.7,2596.5,0.07407109]
[1646911583986,0.00330436,2596.6,2596.3,0.96346]
[1646911584386,0.00330436,2596.6,2596.3,1.92681]
[1646911584888,0.71461778,2596.7,2596.3,1.92681]
[1646911585087,0.00330439,2596.6,2596.3,1.92681]
[1646911585291,0.00330439,2596.6,2596.3,0.96346]
[1646911585589,0.71461778,2596.5,2596.3,0.96346]
[1646911586388,0.71792219,2596.5,2596.1,2.80106735]
[1646911587243,0.71461778,2596.5,2596.1,2.80106735]
[1646911587443,0.00330445,2596.4,2596.1,2.80106735]
[1646911587849,0.00330445,2596.4,2596.1,3.76450735]
[1646911588344,0.71461778,2596.6,2596.1,3.76450735]
[1646911588546,0.71461778,2596.6,2596.5,1.07551199]
[1646911588946,1.75926961,2596.7,2596.5,1.07551199]
[1646911589447,1.75926961,2596.7,2596.3,0.96334]
[1646911589647,1.75926961,2596.7,2596.4,0.08601562]
[1646911589846,1.76257394,2596.7,2596.4,0.08601562]
[1646911590047,1.76257394,2596.7,2596.4,1.04937562]
[1646911590887,1.75926961,2596.7,2596.4,1.04937562]
[1646911591089,1.76257396,2596.7,2596.4,1.04937562]
[1646911591890,2.94313911,2596.7,2596.4,1.04937562]
[1646911592094,1.04465183,2596.6,2596.4,1.04937562]
[1646911593498,1.0479562,2596.6,2596.4,1.04937562]
[1646911594544,1.04465183,2596.6,2596.4,1.04937562]
[1646911594835,1.0479562,2596.6,2596.4,0.08601562]
[1646911595436,1.0479562,2596.6,2596.2,0.07090211]
[1646911595640,1.04465183,2596.6,2596.2,0.07090211]
[1646911595838,1.0479562,2596.6,2596.2,0.07090211]
[1646911596236,1.0479562,2596.6,2596.1,1.92672]
[1646911596435,1.76257398,2596.6,2596.1,1.92672]
[1646911596635,1.04465183,2596.5,2596.1,1.92672]
[1646911597139,1.04465183,2596.4,2596.1,1.92672]
[1646911597942,1.04465183,2596.3,2596.0,0.96930558]
[1646911598142,1.04465183,2596.2,2596.0,1.26930558]
[1646911598393,1.04465183,2596.1,2596.0,1.26930558]
[1646911598794,1.04465183,2596.3,2596.0,2.23277558]
[1646911599195,1.04465183,2596.3,2596.0,3.19626558]
[1646911599394,1.04465183,2596.2,2596.0,3.19626558]
[1646911599595,1.04465183,2596.1,2596.0,2.31655176]
[1646911599794,1.04465183,2596.1,2596.0,1.89576136]
[1646911599996,1.04465183,2596.2,2596.0,1.59576136]
[1646911600195,1.04465183,2596.2,2596.0,0.5426796]
[1646911600396,1.04465183,2596.1,2595.8,3.08867]
[1646911600600,0.71461778,2596.5,2595.7,0.08056424]
[1646911600601,1.04465183,2596.0,2595.7,0.08056424]
[1646911600802,1.04465183,2596.0,2595.8,0.52070904]
[1646911600803,1.04465183,2595.9,2595.8,0.52070904]
[1646911600997,1.04465183,2595.9,2595.8,0.52072963]
[1646911601197,1.04465183,2595.9,2595.8,0.52076343]
[1646911601400,1.04465183,2595.9,2595.8,0.52076486]
[1646911601598,1.04465183,2595.9,2595.7,0.52076615]
[1646911601798,1.04465183,2595.8,2595.6,0.9637]
[1646911602045,0.00330461,2596.0,2595.7,0.52077352]
[1646911602842,1.08742592,2596.2,2595.7,0.52077352]
[1646911603044,0.00330461,2596.0,2595.7,0.52077352]
[1646911603547,0.00330461,2596.0,2595.8,1.92727]
[1646911603745,1.06816718,2596.0,2595.8,0.22473223]
[1646911603945,1.06486257,2595.9,2595.8,0.22473223]
[1646911604146,1.06486257,2595.9,2595.8,0.77716305]
[1646911604847,1.06486257,2595.9,2595.8,1.69163205]
[1646911605448,1.06486257,2595.9,2595.8,2.65517205]
[1646911610936,0.00330462,2596.0,2595.8,6.50919645]
[1646911611242,0.71461778,2596.5,2596.0,0.96345]
[1646911611439,0.71461778,2596.5,2596.2,0.96345]
[1646911611637,0.01321657,2596.4,2596.2,0.96345]
[1646911612440,0.75647501,2596.6,2596.2,0.96345]
[1646911612642,0.00330446,2596.4,2596.2,1.95070798]
[1646911612841,0.00330446,2596.4,2596.2,3.87758798]
[1646911613041,0.00330446,2596.4,2596.2,4.84103798]
[1646911613689,0.71461778,2596.6,2596.2,4.84103798]
[1646911613893,0.00330446,2596.4,2596.2,4.84103798]
[1646911614590,0.71792224,2596.4,2596.2,3.85378]
[1646911614890,0.71461778,2596.4,2596.2,3.85378]
[1646911615389,0.71792223,2596.4,2596.2,3.85378]
[1646911615990,0.71461778,2596.4,2596.2,3.85378]
[1646911616395,0.71792223,2596.4,2596.2,3.85378]
[1646911616591,0.04663588,2596.3,2596.2,2.89033]
[1646911616792,0.71461778,2596.3,2596.2,1.92688]
[1646911620050,0.00330447,2596.4,2596.2,1.92688]
[1646911620051,0.71792225,2596.4,2596.2,1.92688]
[1646911620891,0.71461778,2596.4,2596.2,1.92688]
[1646911621191,0.71792223,2596.4,2596.2,2.89031]
[1646911621394,0.71792223,2596.4,2596.2,3.85379]
[1646911621992,0.71461778,2596.4,2596.2,3.85379]
[1646911622196,0.71461778,2596.4,2596.2,4.8171906]
[1646911622496,0.71792223,2596.4,2596.2,4.8171906]
[1646911623196,0.71461778,2596.4,2596.2,3.85379]
[1646911623396,0.71461778,2596.4,2596.2,2.89031]
[1646911623597,0.71792223,2596.4,2596.2,2.89031]
[1646911623798,0.71792223,2596.4,2596.2,1.18790163]
[1646911624398,0.71461778,2596.4,2596.2,1.18790163]
[1646911624836,0.71792223,2596.4,2596.2,1.18790163]
[1646911625039,0.71792223,2596.4,2596.2,2.15133163]
[1646911625641,0.71461778,2596.4,2596.2,2.15133163]
[1646911626040,0.71461778,2596.3,2596.2,2.15133163]
[1646911626239,0.71461778,2596.3,2596.2,1.18790163]
[1646911626439,0.71966008,2596.3,2596.2,1.18790163]
[1646911629796,0.0050423,2596.3,2596.2,2.15137163]
[1646911630898,0.71966008,2596.3,2596.2,2.15137163]
[1646911631099,1.7263372,2596.3,2596.2,2.73601753]
[1646911631905,1.01171942,2596.3,2596.2,2.73601753]
[1646911633751,1.01171942,2596.3,2596.2,3.03601753]
[1646911638595,1.01171942,2596.3,2596.2,4.03601753]
[1646911638896,1.01171942,2596.3,2596.2,4.58901753]
[1646911639846,1.01171942,2596.3,2596.2,3.58901753]
[1646911645795,0.0050423,2596.3,2596.2,3.58901753]
[1646911645997,1.01242609,2596.3,2596.2,3.58901753]
[1646911646297,1.01246109,2596.3,2596.2,3.58901753]
[1646911647749,0.0050423,2596.3,2596.2,3.58901753]
[1646911647945,1.01227143,2596.3,2596.2,3.58901753]
[1646911648545,0.0050423,2596.3,2596.2,3.58901753]
[1646911648747,1.01229941,2596.3,2596.2,3.58901753]
[1646911649347,0.0050423,2596.3,2596.2,3.58901753]
[1646911650149,0.0050423,2596.3,2596.2,4.58901753]
[1646911650552,0.01371773,2596.8,2596.2,4.58901753]
[1646911650797,1.00716906,2596.7,2596.5,0.96308]
[1646911651098,0.71461778,2596.9,2596.6,1.25410366]
[1646911651399,3.26523152,2597.2,2596.7,0.60227045]
[1646911651400,0.98845753,2596.8,2596.7,0.60227045]
[1646911651598,0.98845753,2596.8,2596.6,1.25410366]
[1646911651799,0.98845753,2596.7,2596.6,6.06949366]
[1646911652203,0.98845753,2596.7,2596.6,7.03258716]
[1646911652405,0.98845753,2596.8,2596.6,7.03258716]
[1646911652604,0.98845753,2596.8,2596.6,8.95875716]
[1646911652804,1.02881559,2596.8,2596.6,9.51175716]
[1646911653007,0.98845753,2596.7,2596.6,9.51175716]
[1646911653408,0.98845753,2596.7,2596.6,10.11395769]
[1646911654106,0.98845753,2596.7,2596.6,10.11390623]
[1646911654305,0.98845753,2596.7,2596.6,9.51175716]
[1646911654546,0.98845753,2596.7,2596.6,10.11384729]
[1646911654743,0.98845753,2596.7,2596.6,9.51175716]
[1646911654943,0.98845753,2596.7,2596.6,10.11386096]
[1646911655145,0.98845753,2596.7,2596.6,9.51175716]
[1646911655343,0.98845753,2596.7,2596.6,10.1138742]
[1646911655547,0.98845753,2596.7,2596.6,9.51175716]
[1646911655746,0.98845753,2596.7,2596.6,10.11380116]
[1646911655945,0.98845753,2596.7,2596.6,7.22456953]
[1646911656144,0.98845753,2596.7,2596.6,6.67157718]
[1646911656344,0.98845753,2596.7,2596.6,4.15233]
[1646911656545,1.74696921,2596.8,2596.6,0.22400099]
[1646911656745,0.98845753,2596.7,2596.6,1.18738099]
[1646911657748,2.05062287,2596.7,2596.6,1.18738099]
[1646911658155,1.70307531,2596.7,2596.6,0.96338]
[1646911658805,1.7035289,2596.7,2596.5,0.96308]
[1646911659001,5.2035289,2596.6,2596.5,0.96308]
[1646911659203,1.7035289,2596.6,2596.5,0.96308]
[1646911659403,0.05054997,2596.5,2596.3,1.92688]
[1646911659602,0.05054997,2596.5,2596.2,1.92688]
[1646911659603,1.7035289,2596.4,2596.2,1.92688]
[1646911659803,4.48845753,2596.3,2596.2,1.92688]
[1646911660002,0.98845753,2596.3,2596.1,1.92705]
[1646911660203,0.98845753,2596.2,2596.1,1.92705]
[1646911660403,0.98845753,2596.2,2596.1,2.54807863]
[1646911663248,0.98845753,2596.2,2596.1,3.51157863]
[1646911664648,0.00307014,2596.5,2596.2,1.92655]
[1646911664847,0.00307014,2596.5,2596.2,4.81638]
[1646911665049,0.72735125,2596.7,2596.3,0.96326]
[1646911665248,0.75542943,2596.8,2596.3,0.96326]
[1646911665447,0.75542943,2596.8,2596.3,2.88964]
[1646911665649,0.75542943,2596.8,2596.5,0.07248495]
[1646911665893,0.04035806,2596.8,2596.5,0.07248495]
[1646911666096,0.04035806,2596.8,2596.7,2.0003653]
[1646911666496,0.75542943,2596.8,2596.7,2.0003653]
[1646911666693,0.75542943,2596.8,2596.6,1.92653]
[1646911666894,0.71514743,2596.7,2596.6,1.92653]
[1646911667100,0.71514743,2596.7,2596.5,1.92649]
[1646911667299,0.71514743,2596.6,2596.5,1.92649]
[1646911668100,0.71514743,2596.6,2596.5,3.85299]
[1646911670244,0.05164654,2596.7,2596.5,3.85299]
[1646911670449,0.71535886,2596.6,2596.5,3.85299]
[1646911670747,3.5,2596.6,2596.5,1.92649]
[1646911670947,3.5,2596.6,2596.4,1.92641]
[1646911670948,0.04231148,2596.5,2596.4,1.92641]
[1646911671144,3.54231148,2596.5,2596.4,1.92641]
[1646911671349,3.5,2596.5,2596.4,1.92641]
[1646911671748,4.45460167,2596.5,2596.4,1.92641]
[1646911672150,0.95460167,2596.5,2596.4,1.92641]
[1646911672750,0.95813753,2596.6,2596.4,1.92641]
[1646911672952,3.5,2596.5,2596.4,1.92641]
[1646911673152,4.45460167,2596.5,2596.4,1.92641]
[1646911673399,0.95460167,2596.5,2596.4,1.92641]
[1646911674402,0.9580182,2596.6,2596.4,1.92641]
[1646911675005,0.95460167,2596.6,2596.4,1.92641]
[1646911675206,0.71539094,2596.5,2596.4,2.88978]
[1646911676207,0.99495973,2596.8,2596.5,1.11632399]
[1646911676406,0.99495973,2596.8,2596.6,0.64070262]
[1646911676407,0.04035806,2596.8,2596.6,0.64070262]
[1646911676609,0.04035806,2596.8,2596.6,2.87936703]
[1646911677452,0.04035806,2596.8,2596.6,6.73181003]
[1646911677655,0.04365299,2596.8,2596.6,6.73181003]
[1646911678252,0.04365299,2596.8,2596.6,2.57936703]
[1646911678553,0.04035806,2596.8,2596.6,2.57936703]
[1646911678751,0.04035806,2596.8,2596.6,2.49166441]
[1646911678952,0.04035806,2596.8,2596.5,1.92653]
[1646911678953,0.04365299,2596.8,2596.5,1.92653]
[1646911679354,0.04365299,2596.8,2596.5,0.96311]
[1646911679852,0.04035806,2596.8,2596.6,1.04638628]
[1646911680053,0.04365301,2596.8,2596.6,1.04638628]
[1646911680894,0.04035806,2596.8,2596.6,1.04638628]
[1646911681295,0.04035806,2596.8,2596.5,0.96311]
[1646911682300,3.54035806,2596.8,2596.5,0.96311]
[1646911682502,1.17262267,2596.7,2596.5,0.96311]
[1646911683105,3.5,2596.6,2596.5,0.96311]
[1646911683302,3.5,2596.6,2596.4,1.92641]
[1646911684645,0.93447332,2596.5,2596.4,1.92641]
[1646911684845,0.93447332,2596.5,2596.3,1.92696]
[1646911685545,0.93447332,2596.4,2596.3,2.8904]
[1646911685746,0.93447332,2596.4,2596.3,1.92696]
[1646911685944,0.93447332,2596.5,2596.3,1.92696]
[1646911686244,1.64941176,2596.5,2596.3,1.92696]
[1646911686452,0.93447332,2596.4,2596.3,2.89037]
[1646911686749,0.93447332,2596.5,2596.3,4.50878127]
[1646911687049,0.71493844,2596.7,2596.4,1.61833447]
[1646911687253,0.93798408,2596.6,2596.5,0.65505447]
[1646911687452,0.93798408,2596.6,2596.5,1.59490258]
[1646911687453,0.00353577,2596.6,2596.5,1.59490258]
[1646911687953,0.00353577,2596.6,2596.5,2.55818258]
[1646911688153,0.93444831,2596.6,2596.5,2.55818258]
[1646911688404,0.93444831,2596.6,2596.5,6.41117848]
[1646911688604,0.00353588,2596.7,2596.5,6.41117848]
[1646911688806,0.00353588,2596.7,2596.6,0.65505447]
[1646911689408,0.71493844,2596.9,2596.6,1.61829447]
[1646911689608,0.00341651,2596.8,2596.7,0.96324]
[1646911690605,0.71493844,2596.9,2596.7,0.96324]
[1646911690805,0.71835491,2596.9,2596.7,0.96324]
[1646911691807,0.71493844,2596.9,2596.7,0.96324]
[1646911692060,1.6528032,2596.9,2596.7,1.0422046]
[1646911692252,0.93444831,2596.8,2596.7,1.0422046]